[Event "Titled Tuesday Blitz May 23 Late 2023"]
[White "Moral Garcia, Serafin"]
[Black "Van Foreest, Jorden"]
[WhiteFideId "2201925"]
[BlackFideId "1039784"]
[WhiteElo "2274"]
[BlackElo "2633"]
[Result "0-1"]
[Round "01"]
[TimeControl "180+2"]
[Date "2023.05.23"]
[WhiteClock "0:00:57"]
[BlackClock "0:01:59"]

1. c4 {[%clk 0:02:59]}  g6 {[%clk 0:03:00]} 2. Nc3 {[%clk 0:02:58]}  Bg7 {[%clk 0:03:01]} 3. g3 {[%clk 0:02:59]}  Nc6 {[%clk 0:02:59]} 4. Bg2 {[%clk 0:02:57]}  d6 {[%clk 0:02:59]} 5. e3 {[%clk 0:02:56]}  e5 {[%clk 0:03:00]} 6. Nge2 {[%clk 0:02:54]}  f5 {[%clk 0:03:00]} 7. d4 {[%clk 0:02:53]}  e4 {[%clk 0:02:55]} 8. f3 {[%clk 0:02:52]}  exf3 {[%clk 0:02:55]} 9. Bxf3 {[%clk 0:02:52]}  Nf6 {[%clk 0:02:56]} 10. O-O {[%clk 0:02:51]}  O-O {[%clk 0:02:57]} 11. Nf4 {[%clk 0:02:49]}  Ne7 {[%clk 0:02:49]} 12. e4 {[%clk 0:02:43]}  fxe4 {[%clk 0:02:48]} 13. Nxe4 {[%clk 0:02:41]}  Nxe4 {[%clk 0:02:48]} 14. Bxe4 {[%clk 0:02:42]}  c6 {[%clk 0:02:49]} 15. Bg2 {[%clk 0:02:27]}  Nf5 {[%clk 0:02:44]} 16. d5 {[%clk 0:02:26]}  c5 {[%clk 0:02:45]} 17. Re1 {[%clk 0:02:16]}  Be5 {[%clk 0:02:40]} 18. Rb1 {[%clk 0:02:04]}  Nd4 {[%clk 0:02:37]} 19. b3 {[%clk 0:02:00]}  Bf5 {[%clk 0:02:36]} 20. Rb2 {[%clk 0:01:54]}  Qd7 {[%clk 0:02:37]} 21. Rf2 {[%clk 0:01:50]}  Rae8 {[%clk 0:02:34]} 22. Bb2 {[%clk 0:01:45]}  Qg7 {[%clk 0:02:32]} 23. Kh1 {[%clk 0:01:44]}  a6 {[%clk 0:02:30]} 24. Bxd4 {[%clk 0:01:41]}  Bxd4 {[%clk 0:02:29]} 25. Rfe2 {[%clk 0:01:42]}  Bg4 {[%clk 0:02:19]} 26. Ne6 {[%clk 0:01:41]}  Bxe2 {[%clk 0:02:16]} 27. Rxe2 {[%clk 0:01:40]}  Qf6 {[%clk 0:02:13]} 28. Nxf8 {[%clk 0:01:38]}  Rxf8 {[%clk 0:02:14]} 29. Qe1 {[%clk 0:01:33]}  Bc3 {[%clk 0:02:11]} 30. Qd1 {[%clk 0:01:27]}  Be5 {[%clk 0:02:12]} 31. Bh3 {[%clk 0:01:22]}  Kg7 {[%clk 0:02:12]} 32. Re1 {[%clk 0:01:14]}  Qg5 {[%clk 0:02:03]} 33. Rf1 {[%clk 0:01:10]}  Qe3 {[%clk 0:02:03]} 34. Rxf8 {[%clk 0:01:07]}  Kxf8 {[%clk 0:02:04]} 35. Qf1+ {[%clk 0:01:06]}  Kg7 {[%clk 0:02:05]} 36. Be6 {[%clk 0:01:06]}  Qe4+ {[%clk 0:02:04]} 37. Qg2 {[%clk 0:01:03]}  Qb1+ {[%clk 0:02:04]} 38. Qg1 {[%clk 0:01:03]}  Qxa2 {[%clk 0:02:05]} 39. Qe3 {[%clk 0:01:03]}  Qb1+ {[%clk 0:02:03]} 40. Kg2 {[%clk 0:01:03]}  Qc2+ {[%clk 0:02:03]} 41. Kh3 {[%clk 0:01:03]}  Qd1 {[%clk 0:01:59]} 42. Qf2 {[%clk 0:01:00]}  Bf6 {[%clk 0:02:00]} 43. Qe3 {[%clk 0:00:59]}  Qf1+ {[%clk 0:01:58]} 44. Kg4 {[%clk 0:00:57]}  h5# {[%clk 0:01:59]} 0-1


[Site "https://www.chess.com"]

[Event "Titled Tuesday Blitz May 23 Late 2023"]
[White "Sjugirov, Sanan"]
[Black "Deviprasath, Sharvesh"]
[WhiteFideId "4189302"]
[BlackFideId "30938228"]
[WhiteElo "2569"]
[BlackElo "2168"]
[Result "1-0"]
[Round "01"]
[TimeControl "180+2"]
[Date "2023.05.23"]
[WhiteClock "0:00:19"]
[BlackClock "0:00:16"]

1. d4 {[%clk 0:03:00]}  Nf6 {[%clk 0:02:57]} 2. c4 {[%clk 0:03:01]}  g6 {[%clk 0:02:55]} 3. Nc3 {[%clk 0:03:01]}  Bg7 {[%clk 0:02:56]} 4. e4 {[%clk 0:03:01]}  d6 {[%clk 0:02:56]} 5. Nf3 {[%clk 0:03:01]}  O-O {[%clk 0:02:57]} 6. Be2 {[%clk 0:03:02]}  Nbd7 {[%clk 0:02:55]} 7. O-O {[%clk 0:03:02]}  e5 {[%clk 0:02:56]} 8. Be3 {[%clk 0:02:54]}  Re8 {[%clk 0:02:56]} 9. Qc2 {[%clk 0:02:43]}  exd4 {[%clk 0:02:53]} 10. Bxd4 {[%clk 0:02:42]}  Nc5 {[%clk 0:02:54]} 11. Bxc5 {[%clk 0:02:25]}  dxc5 {[%clk 0:02:53]} 12. Rad1 {[%clk 0:02:25]}  Qe7 {[%clk 0:02:52]} 13. e5 {[%clk 0:02:24]}  Nd7 {[%clk 0:02:50]} 14. Nd5 {[%clk 0:02:14]}  Qd8 {[%clk 0:02:50]} 15. Nf4 {[%clk 0:01:59]}  c6 {[%clk 0:02:26]} 16. e6 {[%clk 0:01:40]}  fxe6 {[%clk 0:02:26]} 17. Bd3 {[%clk 0:01:40]}  e5 {[%clk 0:02:22]} 18. Ne2 {[%clk 0:01:40]}  Qe7 {[%clk 0:02:17]} 19. Ng3 {[%clk 0:01:40]}  Nf8 {[%clk 0:02:06]} 20. Rde1 {[%clk 0:01:40]}  Bg4 {[%clk 0:02:05]} 21. Nd2 {[%clk 0:01:28]}  Ne6 {[%clk 0:01:43]} 22. Nde4 {[%clk 0:01:28]}  Nd4 {[%clk 0:01:41]} 23. Qc1 {[%clk 0:01:27]}  Rad8 {[%clk 0:01:36]} 24. Bb1 {[%clk 0:01:23]}  Be6 {[%clk 0:01:28]} 25. b3 {[%clk 0:01:22]}  a6 {[%clk 0:01:26]} 26. Kh1 {[%clk 0:01:16]}  Kh8 {[%clk 0:01:19]} 27. Ng5 {[%clk 0:01:02]}  Bf5 {[%clk 0:01:15]} 28. f4 {[%clk 0:00:44]}  h6 {[%clk 0:01:08]} 29. Nf3 {[%clk 0:00:22]}  Nxf3 {[%clk 0:01:05]} 30. Rxf3 {[%clk 0:00:23]}  Bxb1 {[%clk 0:00:40]} 31. Qxb1 {[%clk 0:00:24]}  Qd6 {[%clk 0:00:40]} 32. Rfe3 {[%clk 0:00:19]}  Kh7 {[%clk 0:00:33]} 33. f5 {[%clk 0:00:19]}  gxf5 {[%clk 0:00:29]} 34. Nxf5 {[%clk 0:00:20]}  Qg6 {[%clk 0:00:16]} 35. Rg3 {[%clk 0:00:19]} 1-0


[Site "https://www.chess.com"]

[Event "Titled Tuesday Blitz May 23 Late 2023"]
[White "Ognean, Mihnea-Ionut"]
[Black "Makarian, Rudik"]
[WhiteFideId "1232347"]
[BlackFideId "44105681"]
[WhiteElo "2215"]
[BlackElo "2461"]
[Result "0-1"]
[Round "01"]
[TimeControl "180+2"]
[Date "2023.05.23"]
[WhiteClock "0:00:01"]
[BlackClock "0:00:09"]

1. Nf3 {[%clk 0:03:00]}  Nf6 {[%clk 0:01:34]} 2. d4 {[%clk 0:03:00]}  c5 {[%clk 0:01:31]} 3. d5 {[%clk 0:02:59]}  b5 {[%clk 0:01:28]} 4. e4 {[%clk 0:02:59]}  Nxe4 {[%clk 0:01:27]} 5. Bd3 {[%clk 0:02:55]}  Qa5+ {[%clk 0:01:26]} 6. c3 {[%clk 0:02:40]}  Nf6 {[%clk 0:01:27]} 7. O-O {[%clk 0:02:39]}  c4 {[%clk 0:01:24]} 8. Bc2 {[%clk 0:02:37]}  Bb7 {[%clk 0:01:24]} 9. a4 {[%clk 0:02:32]}  Nxd5 {[%clk 0:01:19]} 10. Na3 {[%clk 0:02:29]}  e6 {[%clk 0:01:13]} 11. Nxb5 {[%clk 0:02:22]}  Be7 {[%clk 0:01:12]} 12. Qd4 {[%clk 0:02:13]}  O-O {[%clk 0:01:06]} 13. Qxc4 {[%clk 0:02:11]}  Nc6 {[%clk 0:01:05]} 14. Bg5 {[%clk 0:02:02]}  Qd8 {[%clk 0:01:02]} 15. Nd6 {[%clk 0:01:49]}  Rb8 {[%clk 0:01:00]} 16. Qd3 {[%clk 0:01:40]}  g6 {[%clk 0:00:54]} 17. Bxe7 {[%clk 0:01:09]}  Qxe7 {[%clk 0:00:54]} 18. Nxb7 {[%clk 0:01:04]}  Rxb7 {[%clk 0:00:55]} 19. b4 {[%clk 0:01:05]}  Rc7 {[%clk 0:00:52]} 20. Bb3 {[%clk 0:01:01]}  Nf4 {[%clk 0:00:46]} 21. Qe3 {[%clk 0:00:59]}  Qf6 {[%clk 0:00:45]} 22. g3 {[%clk 0:00:53]}  Nh5 {[%clk 0:00:41]} 23. Rac1 {[%clk 0:00:50]}  Rfc8 {[%clk 0:00:41]} 24. a5 {[%clk 0:00:46]}  d5 {[%clk 0:00:37]} 25. Ba4 {[%clk 0:00:41]}  Ng7 {[%clk 0:00:35]} 26. Kg2 {[%clk 0:00:24]}  Nf5 {[%clk 0:00:35]} 27. Qd2 {[%clk 0:00:19]}  Ne5 {[%clk 0:00:33]} 28. Nxe5 {[%clk 0:00:18]}  Qxe5 {[%clk 0:00:34]} 29. b5 {[%clk 0:00:17]}  Rc4 {[%clk 0:00:27]} 30. Bc2 {[%clk 0:00:15]}  Nd6 {[%clk 0:00:24]} 31. Bd3 {[%clk 0:00:15]}  Rxc3 {[%clk 0:00:23]} 32. Rxc3 {[%clk 0:00:16]}  Rxc3 {[%clk 0:00:22]} 33. Rb1 {[%clk 0:00:15]}  Qd4 {[%clk 0:00:20]} 34. Rd1 {[%clk 0:00:14]}  Rb3 {[%clk 0:00:18]} 35. Bf1 {[%clk 0:00:13]}  Qxd2 {[%clk 0:00:18]} 36. Rxd2 {[%clk 0:00:14]}  Nxb5 {[%clk 0:00:18]} 37. Rc2 {[%clk 0:00:14]}  Nd4 {[%clk 0:00:17]} 38. Rc7 {[%clk 0:00:13]}  Ra3 {[%clk 0:00:16]} 39. Rxa7 {[%clk 0:00:14]}  Ra2 {[%clk 0:00:15]} 40. Ra8+ {[%clk 0:00:14]}  Kg7 {[%clk 0:00:15]} 41. a6 {[%clk 0:00:15]}  Nf5 {[%clk 0:00:12]} 42. Bd3 {[%clk 0:00:09]}  Ne3+ {[%clk 0:00:10]} 43. Kf3 {[%clk 0:00:09]}  Nd1 {[%clk 0:00:11]} 44. Be2 {[%clk 0:00:07]}  Nc3 {[%clk 0:00:10]} 45. Bd3 {[%clk 0:00:07]}  Ra3 {[%clk 0:00:10]} 46. Kg2 {[%clk 0:00:07]}  e5 {[%clk 0:00:10]} 47. a7 {[%clk 0:00:07]}  e4 {[%clk 0:00:11]} 48. Bf1 {[%clk 0:00:04]}  d4 {[%clk 0:00:11]} 49. Bc4 {[%clk 0:00:04]}  d3 {[%clk 0:00:10]} 50. Rd8 {[%clk 0:00:02]}  Rxa7 {[%clk 0:00:09]} 51. f3 {[%clk 0:00:02]}  Rc7 {[%clk 0:00:08]} 52. Ba6 {[%clk 0:00:02]}  Rc6 {[%clk 0:00:08]} 53. Bb7 {[%clk 0:00:02]}  Rb6 {[%clk 0:00:07]} 54. Bxe4 {[%clk 0:00:02]}  Rb2+ {[%clk 0:00:08]} 55. Kh3 {[%clk 0:00:02]}  d2 {[%clk 0:00:09]} 56. Bc6 {[%clk 0:00:01]}  d1=Q {[%clk 0:00:09]} 0-1


[Site "https://www.chess.com"]

[Event "Titled Tuesday Blitz May 23 Late 2023"]
[White "Kramnik, Vladimir"]
[Black "Cruz Mendez, Jean Marco"]
[WhiteFideId "4101588"]
[BlackFideId "3526402"]
[WhiteElo "2703"]
[BlackElo "2064"]
[Result "1-0"]
[Round "01"]
[TimeControl "180+2"]
[Date "2023.05.23"]
[WhiteClock "0:00:37"]
[BlackClock "0:00:13"]

1. c4 {[%clk 0:03:00]}  e5 {[%clk 0:02:56]} 2. Nc3 {[%clk 0:03:00]}  Nc6 {[%clk 0:02:57]} 3. g3 {[%clk 0:02:59]}  Bc5 {[%clk 0:02:57]} 4. Bg2 {[%clk 0:02:59]}  a6 {[%clk 0:02:57]} 5. e3 {[%clk 0:02:58]}  Ba7 {[%clk 0:02:58]} 6. Nge2 {[%clk 0:02:58]}  d6 {[%clk 0:02:58]} 7. d3 {[%clk 0:02:54]}  Bg4 {[%clk 0:02:54]} 8. h3 {[%clk 0:02:53]}  Be6 {[%clk 0:02:53]} 9. Nd5 {[%clk 0:02:50]}  Nge7 {[%clk 0:02:49]} 10. Bd2 {[%clk 0:02:49]}  O-O {[%clk 0:02:40]} 11. O-O {[%clk 0:02:47]}  Qd7 {[%clk 0:02:40]} 12. Kh2 {[%clk 0:02:47]}  Rab8 {[%clk 0:02:37]} 13. Rc1 {[%clk 0:02:45]}  Nd8 {[%clk 0:02:35]} 14. f4 {[%clk 0:02:40]}  f6 {[%clk 0:02:26]} 15. Nxe7+ {[%clk 0:02:33]}  Qxe7 {[%clk 0:02:27]} 16. d4 {[%clk 0:02:23]}  exd4 {[%clk 0:02:10]} 17. exd4 {[%clk 0:02:19]}  c6 {[%clk 0:02:10]} 18. d5 {[%clk 0:02:16]}  Bf5 {[%clk 0:02:07]} 19. Bc3 {[%clk 0:02:07]}  Re8 {[%clk 0:01:56]} 20. Nd4 {[%clk 0:01:50]}  Bxd4 {[%clk 0:01:55]} 21. Qxd4 {[%clk 0:01:50]}  c5 {[%clk 0:01:55]} 22. Qf2 {[%clk 0:01:49]}  Qe2 {[%clk 0:01:53]} 23. Rce1 {[%clk 0:01:39]}  Qxf2 {[%clk 0:01:44]} 24. Rxe8+ {[%clk 0:01:38]}  Kf7 {[%clk 0:01:45]} 25. Rxf2 {[%clk 0:01:37]}  Kxe8 {[%clk 0:01:45]} 26. b3 {[%clk 0:01:31]}  Kf7 {[%clk 0:01:37]} 27. g4 {[%clk 0:01:29]}  Bd7 {[%clk 0:01:34]} 28. Bf1 {[%clk 0:01:27]}  b5 {[%clk 0:01:33]} 29. g5 {[%clk 0:01:17]}  b4 {[%clk 0:01:27]} 30. Bb2 {[%clk 0:01:15]}  Bf5 {[%clk 0:01:25]} 31. h4 {[%clk 0:01:04]}  Nb7 {[%clk 0:01:23]} 32. h5 {[%clk 0:01:04]}  h6 {[%clk 0:01:13]} 33. Bh3 {[%clk 0:00:56]}  Bxh3 {[%clk 0:01:10]} 34. Kxh3 {[%clk 0:00:56]}  Re8 {[%clk 0:01:09]} 35. Kg4 {[%clk 0:00:56]}  Re3 {[%clk 0:00:34]} 36. gxf6 {[%clk 0:00:54]}  gxf6 {[%clk 0:00:31]} 37. Kf5 {[%clk 0:00:49]}  Rh3 {[%clk 0:00:31]} 38. Bxf6 {[%clk 0:00:48]}  Rxh5+ {[%clk 0:00:31]} 39. Kg4 {[%clk 0:00:48]}  Rh1 {[%clk 0:00:31]} 40. Bh4 {[%clk 0:00:47]}  a5 {[%clk 0:00:25]} 41. Re2 {[%clk 0:00:46]}  Rg1+ {[%clk 0:00:18]} 42. Kf5 {[%clk 0:00:44]}  Rg7 {[%clk 0:00:18]} 43. Bf6 {[%clk 0:00:42]}  Rh7 {[%clk 0:00:18]} 44. Re7+ {[%clk 0:00:38]}  Kg8 {[%clk 0:00:18]} 45. Rxh7 {[%clk 0:00:37]}  Kxh7 {[%clk 0:00:19]} 46. Ke6 {[%clk 0:00:37]}  h5 {[%clk 0:00:18]} 47. f5 {[%clk 0:00:37]}  Kg8 {[%clk 0:00:13]} 48. Be7 {[%clk 0:00:37]} 1-0


[Site "https://www.chess.com"]

[Event "Titled Tuesday Blitz May 23 Late 2023"]
[White "Janaszak, Dawid"]
[Black "Svane, Frederik"]
[WhiteFideId "1119206"]
[BlackFideId "12923044"]
[WhiteElo "2220"]
[BlackElo "2502"]
[Result "1/2-1/2"]
[Round "01"]
[TimeControl "180+2"]
[Date "2023.05.23"]
[WhiteClock "0:00:08"]
[BlackClock "0:00:22"]

1. e4 {[%clk 0:03:00]}  e6 {[%clk 0:02:57]} 2. b3 {[%clk 0:02:59]}  d5 {[%clk 0:02:53]} 3. Bb2 {[%clk 0:02:59]}  Nf6 {[%clk 0:02:51]} 4. d3 {[%clk 0:03:00]}  Be7 {[%clk 0:02:49]} 5. Nd2 {[%clk 0:02:58]}  O-O {[%clk 0:02:47]} 6. Qe2 {[%clk 0:02:58]}  a5 {[%clk 0:02:47]} 7. e5 {[%clk 0:02:54]}  Nfd7 {[%clk 0:02:47]} 8. g3 {[%clk 0:02:48]}  a4 {[%clk 0:02:46]} 9. Bg2 {[%clk 0:02:46]}  c5 {[%clk 0:02:45]} 10. f4 {[%clk 0:02:44]}  Nc6 {[%clk 0:02:45]} 11. Ngf3 {[%clk 0:02:43]}  Nb4 {[%clk 0:02:43]} 12. Nb1 {[%clk 0:02:31]}  b5 {[%clk 0:02:35]} 13. O-O {[%clk 0:02:26]}  Bb7 {[%clk 0:02:32]} 14. f5 {[%clk 0:02:17]}  exf5 {[%clk 0:02:33]} 15. e6 {[%clk 0:02:17]}  fxe6 {[%clk 0:02:28]} 16. Qxe6+ {[%clk 0:02:16]}  Kh8 {[%clk 0:02:29]} 17. Na3 {[%clk 0:02:04]}  Ra6 {[%clk 0:02:12]} 18. Qe2 {[%clk 0:02:01]}  d4 {[%clk 0:01:55]} 19. Nxb5 {[%clk 0:01:44]}  Bf6 {[%clk 0:01:55]} 20. bxa4 {[%clk 0:01:38]}  Nd5 {[%clk 0:01:33]} 21. Bc1 {[%clk 0:01:14]}  Re8 {[%clk 0:01:20]} 22. Qf2 {[%clk 0:01:10]}  Ne3 {[%clk 0:01:20]} 23. Re1 {[%clk 0:01:04]}  Nxg2 {[%clk 0:01:21]} 24. Rxe8+ {[%clk 0:00:58]}  Qxe8 {[%clk 0:01:21]} 25. Nc7 {[%clk 0:00:48]}  Qc8 {[%clk 0:00:56]} 26. Nxa6 {[%clk 0:00:47]}  Ne3 {[%clk 0:00:57]} 27. Rb1 {[%clk 0:00:36]}  Bxa6 {[%clk 0:00:52]} 28. Bxe3 {[%clk 0:00:31]}  dxe3 {[%clk 0:00:53]} 29. Qxe3 {[%clk 0:00:32]}  Bb7 {[%clk 0:00:53]} 30. Rxb7 {[%clk 0:00:28]}  h6 {[%clk 0:00:45]} 31. Ra7 {[%clk 0:00:28]}  Qc6 {[%clk 0:00:44]} 32. Qe8+ {[%clk 0:00:27]}  Kh7 {[%clk 0:00:44]} 33. Kf2 {[%clk 0:00:15]}  c4 {[%clk 0:00:33]} 34. Qxd7 {[%clk 0:00:14]}  Qb6+ {[%clk 0:00:34]} 35. d4 {[%clk 0:00:13]}  Kg6 {[%clk 0:00:33]} 36. Nh4+ {[%clk 0:00:13]}  Bxh4 {[%clk 0:00:30]} 37. gxh4 {[%clk 0:00:13]}  Qf6 {[%clk 0:00:27]} 38. h5+ {[%clk 0:00:08]}  Kh7 {[%clk 0:00:23]} 39. Qf7 {[%clk 0:00:05]}  Qh4+ {[%clk 0:00:23]} 40. Ke3 {[%clk 0:00:04]}  Qe4+ {[%clk 0:00:22]} 41. Kf2 {[%clk 0:00:05]}  Qf4+ {[%clk 0:00:22]} 42. Ke2 {[%clk 0:00:05]}  Qe4+ {[%clk 0:00:22]} 43. Kf1 {[%clk 0:00:05]}  Qf3+ {[%clk 0:00:21]} 44. Kg1 {[%clk 0:00:06]}  Qe3+ {[%clk 0:00:20]} 45. Kf1 {[%clk 0:00:06]}  Qf3+ {[%clk 0:00:20]} 46. Ke1 {[%clk 0:00:06]}  Qe3+ {[%clk 0:00:20]} 47. Kd1 {[%clk 0:00:07]}  Qxd4+ {[%clk 0:00:21]} 48. Ke2 {[%clk 0:00:07]}  Qe4+ {[%clk 0:00:21]} 49. Kf2 {[%clk 0:00:07]}  Qf4+ {[%clk 0:00:21]} 50. Ke2 {[%clk 0:00:08]}  Qe4+ {[%clk 0:00:21]} 51. Kd2 {[%clk 0:00:08]}  Qd4+ {[%clk 0:00:22]} 52. Kc1 {[%clk 0:00:07]}  Qa1+ {[%clk 0:00:21]} 53. Kd2 {[%clk 0:00:08]}  Qd4+ {[%clk 0:00:22]} 54. Ke2 {[%clk 0:00:08]}  Qe4+ {[%clk 0:00:22]} 1/2-1/2


[Site "https://www.chess.com"]

[Event "Titled Tuesday Blitz May 23 Late 2023"]
[White "Rasulov, Vugar"]
[Black "Kim, Sergey"]
[WhiteFideId "13402390"]
[BlackFideId "13700570"]
[WhiteElo "2509"]
[BlackElo "2493"]
[Result "1-0"]
[Round "01"]
[TimeControl "180+2"]
[Date "2023.05.23"]
[WhiteClock "0:00:51"]
[BlackClock "0:00:27"]

1. d4 {[%clk 0:03:00]}  Nf6 {[%clk 0:02:59]} 2. c4 {[%clk 0:03:01]}  g6 {[%clk 0:02:59]} 3. Nc3 {[%clk 0:03:01]}  d6 {[%clk 0:03:00]} 4. e4 {[%clk 0:03:01]}  Bg7 {[%clk 0:03:00]} 5. h3 {[%clk 0:03:01]}  O-O {[%clk 0:03:00]} 6. Be3 {[%clk 0:03:02]}  e5 {[%clk 0:03:00]} 7. d5 {[%clk 0:03:00]}  a5 {[%clk 0:03:00]} 8. Nge2 {[%clk 0:02:59]}  Na6 {[%clk 0:03:00]} 9. g4 {[%clk 0:02:59]}  Nc5 {[%clk 0:03:00]} 10. Ng3 {[%clk 0:02:59]}  Bd7 {[%clk 0:03:00]} 11. Be2 {[%clk 0:02:55]}  a4 {[%clk 0:02:58]} 12. Qc2 {[%clk 0:02:49]}  c6 {[%clk 0:02:57]} 13. g5 {[%clk 0:02:37]}  Ne8 {[%clk 0:02:57]} 14. h4 {[%clk 0:02:37]}  Nc7 {[%clk 0:02:55]} 15. h5 {[%clk 0:02:36]}  cxd5 {[%clk 0:02:53]} 16. exd5 {[%clk 0:02:31]}  N7a6 {[%clk 0:02:48]} 17. Qd2 {[%clk 0:02:19]}  Rc8 {[%clk 0:02:38]} 18. O-O-O {[%clk 0:02:10]}  a3 {[%clk 0:02:08]} 19. b3 {[%clk 0:02:09]}  b5 {[%clk 0:01:47]} 20. Kb1 {[%clk 0:02:01]}  bxc4 {[%clk 0:01:44]} 21. Bxc4 {[%clk 0:02:02]}  Rb8 {[%clk 0:01:36]} 22. f3 {[%clk 0:01:45]}  Rb4 {[%clk 0:01:31]} 23. Bxa6 {[%clk 0:01:34]}  Nxa6 {[%clk 0:01:30]} 24. Nce4 {[%clk 0:01:26]}  Qb8 {[%clk 0:01:18]} 25. Rc1 {[%clk 0:01:05]}  Rc8 {[%clk 0:01:08]} 26. Ka1 {[%clk 0:00:59]}  Nc5 {[%clk 0:00:51]} 27. Bxc5 {[%clk 0:00:53]}  dxc5 {[%clk 0:00:50]} 28. hxg6 {[%clk 0:00:54]}  hxg6 {[%clk 0:00:48]} 29. Nf6+ {[%clk 0:00:50]}  Bxf6 {[%clk 0:00:27]} 30. gxf6 {[%clk 0:00:51]} 1-0


[Site "https://www.chess.com"]

[Event "Titled Tuesday Blitz May 23 Late 2023"]
[White "Santos Flores, Alberto"]
[Black "Zakhartsov, Vladimir"]
[WhiteFideId "3601234"]
[BlackFideId "4145097"]
[WhiteElo "2235"]
[BlackElo "2495"]
[Result "1/2-1/2"]
[Round "01"]
[TimeControl "180+2"]
[Date "2023.05.23"]
[WhiteClock "0:00:28"]
[BlackClock "0:00:14"]

1. d4 {[%clk 0:02:59]}  g6 {[%clk 0:03:00]} 2. e4 {[%clk 0:02:58]}  Bg7 {[%clk 0:03:00]} 3. Nc3 {[%clk 0:02:58]}  a6 {[%clk 0:03:01]} 4. Nf3 {[%clk 0:02:55]}  b5 {[%clk 0:03:01]} 5. Be3 {[%clk 0:02:52]}  Bb7 {[%clk 0:03:01]} 6. Bd3 {[%clk 0:02:52]}  d6 {[%clk 0:03:01]} 7. Qd2 {[%clk 0:02:51]}  Nd7 {[%clk 0:03:02]} 8. d5 {[%clk 0:02:51]}  c5 {[%clk 0:03:00]} 9. dxc6 {[%clk 0:02:51]}  Bxc6 {[%clk 0:03:00]} 10. Nd4 {[%clk 0:02:51]}  Bb7 {[%clk 0:03:00]} 11. f3 {[%clk 0:02:51]}  Rc8 {[%clk 0:02:59]} 12. O-O-O {[%clk 0:02:51]}  h5 {[%clk 0:02:57]} 13. Kb1 {[%clk 0:02:50]}  Ngf6 {[%clk 0:02:55]} 14. h4 {[%clk 0:02:48]}  Nb6 {[%clk 0:02:51]} 15. e5 {[%clk 0:02:36]}  dxe5 {[%clk 0:02:51]} 16. Ne6 {[%clk 0:02:36]}  Nc4 {[%clk 0:02:28]} 17. Bxc4 {[%clk 0:02:13]}  Qxd2 {[%clk 0:02:28]} 18. Rxd2 {[%clk 0:02:07]}  bxc4 {[%clk 0:01:56]} 19. Nxg7+ {[%clk 0:02:07]}  Kf8 {[%clk 0:01:57]} 20. Ne6+ {[%clk 0:02:06]}  fxe6 {[%clk 0:01:57]} 21. Re1 {[%clk 0:02:01]}  Nd5 {[%clk 0:01:55]} 22. Ne4 {[%clk 0:01:51]}  Nxe3 {[%clk 0:01:35]} 23. Rxe3 {[%clk 0:01:51]}  Bxe4 {[%clk 0:01:36]} 24. Rxe4 {[%clk 0:01:51]}  Rc5 {[%clk 0:01:35]} 25. Rde2 {[%clk 0:01:33]}  Kf7 {[%clk 0:01:32]} 26. Rxe5 {[%clk 0:01:33]}  Rd8 {[%clk 0:01:19]} 27. Kc1 {[%clk 0:01:32]}  Rcd5 {[%clk 0:01:17]} 28. Re1 {[%clk 0:01:27]}  R8d6 {[%clk 0:01:14]} 29. Rxd5 {[%clk 0:01:13]}  exd5 {[%clk 0:01:13]} 30. c3 {[%clk 0:01:13]}  Kf6 {[%clk 0:01:13]} 31. b4 {[%clk 0:01:09]}  e5 {[%clk 0:01:10]} 32. a4 {[%clk 0:01:08]}  d4 {[%clk 0:01:11]} 33. Kd2 {[%clk 0:01:06]}  Kf5 {[%clk 0:01:08]} 34. Re4 {[%clk 0:01:05]}  Rd5 {[%clk 0:01:04]} 35. g4+ {[%clk 0:01:00]}  Kf6 {[%clk 0:00:43]} 36. gxh5 {[%clk 0:00:45]}  gxh5 {[%clk 0:00:44]} 37. f4 {[%clk 0:00:46]}  Kf5 {[%clk 0:00:09]} 38. Rxe5+ {[%clk 0:00:37]}  Rxe5 {[%clk 0:00:10]} 39. fxe5 {[%clk 0:00:38]}  Kxe5 {[%clk 0:00:10]} 40. cxd4+ {[%clk 0:00:33]}  Kxd4 {[%clk 0:00:10]} 41. Kc2 {[%clk 0:00:32]}  c3 {[%clk 0:00:07]} 42. b5 {[%clk 0:00:28]}  axb5 {[%clk 0:00:06]} 43. axb5 {[%clk 0:00:25]}  Kc5 {[%clk 0:00:06]} 44. Kxc3 {[%clk 0:00:25]}  Kxb5 {[%clk 0:00:06]} 45. Kd4 {[%clk 0:00:25]}  Kc6 {[%clk 0:00:07]} 46. Ke5 {[%clk 0:00:25]}  Kd7 {[%clk 0:00:08]} 47. Kf6 {[%clk 0:00:26]}  Ke8 {[%clk 0:00:09]} 48. Kg6 {[%clk 0:00:25]}  Kf8 {[%clk 0:00:10]} 49. Kxh5 {[%clk 0:00:25]}  Kg8 {[%clk 0:00:11]} 50. Kg6 {[%clk 0:00:26]}  Kh8 {[%clk 0:00:12]} 51. h5 {[%clk 0:00:27]}  Kg8 {[%clk 0:00:13]} 52. h6 {[%clk 0:00:27]}  Kh8 {[%clk 0:00:14]} 53. h7 {[%clk 0:00:28]} 1/2-1/2


[Site "https://www.chess.com"]

[Event "Titled Tuesday Blitz May 23 Late 2023"]
[White "Babazada, Khazar"]
[Black "Le Goff, Ronan"]
[WhiteFideId "13413554"]
[BlackFideId "612073"]
[WhiteElo "2351"]
[BlackElo "2275"]
[Result "1-0"]
[Round "01"]
[TimeControl "180+2"]
[Date "2023.05.23"]
[WhiteClock "0:01:30"]
[BlackClock "0:00:57"]

1. e4 {[%clk 0:02:57]}  e5 {[%clk 0:02:53]} 2. Nf3 {[%clk 0:02:56]}  Nc6 {[%clk 0:02:54]} 3. Bb5 {[%clk 0:02:56]}  Nf6 {[%clk 0:02:54]} 4. Bd3 {[%clk 0:02:57]}  Bc5 {[%clk 0:02:46]} 5. O-O {[%clk 0:02:56]}  O-O {[%clk 0:02:46]} 6. Nc3 {[%clk 0:02:55]}  d6 {[%clk 0:02:45]} 7. h3 {[%clk 0:02:55]}  a6 {[%clk 0:02:42]} 8. a3 {[%clk 0:02:53]}  h6 {[%clk 0:02:40]} 9. Bc4 {[%clk 0:02:53]}  Be6 {[%clk 0:02:39]} 10. d3 {[%clk 0:02:49]}  Nd4 {[%clk 0:02:37]} 11. Be3 {[%clk 0:02:47]}  c6 {[%clk 0:02:35]} 12. Bxe6 {[%clk 0:02:37]}  fxe6 {[%clk 0:02:34]} 13. Bxd4 {[%clk 0:02:38]}  exd4 {[%clk 0:02:34]} 14. Ne2 {[%clk 0:02:38]}  e5 {[%clk 0:02:34]} 15. c3 {[%clk 0:02:33]}  dxc3 {[%clk 0:02:33]} 16. bxc3 {[%clk 0:02:34]}  Kh8 {[%clk 0:02:33]} 17. Ng3 {[%clk 0:02:29]}  b5 {[%clk 0:02:30]} 18. d4 {[%clk 0:02:22]}  exd4 {[%clk 0:02:26]} 19. cxd4 {[%clk 0:02:23]}  Bb6 {[%clk 0:02:27]} 20. Qc2 {[%clk 0:02:24]}  Qd7 {[%clk 0:02:25]} 21. Nh4 {[%clk 0:02:20]}  Rfe8 {[%clk 0:02:22]} 22. Rad1 {[%clk 0:02:16]}  Rad8 {[%clk 0:02:18]} 23. Rfe1 {[%clk 0:02:12]}  c5 {[%clk 0:02:16]} 24. dxc5 {[%clk 0:02:09]}  Bxc5 {[%clk 0:02:16]} 25. e5 {[%clk 0:02:09]}  Nh7 {[%clk 0:02:00]} 26. Ngf5 {[%clk 0:01:49]}  Ng5 {[%clk 0:01:53]} 27. Ng6+ {[%clk 0:01:45]}  Kh7 {[%clk 0:01:50]} 28. h4 {[%clk 0:01:45]}  Bxf2+ {[%clk 0:01:31]} 29. Kxf2 {[%clk 0:01:40]}  Rf8 {[%clk 0:01:31]} 30. e6 {[%clk 0:01:32]}  Qa7+ {[%clk 0:01:25]} 31. Kg3 {[%clk 0:01:32]}  Rf6 {[%clk 0:01:07]} 32. hxg5 {[%clk 0:01:30]}  Rxg6 {[%clk 0:00:57]} 33. Nh4 {[%clk 0:01:30]} 1-0


[Site "https://www.chess.com"]